Cogmind - Beta 11 X4 @@@ ROGUE MODE // 2021.05.20 @ 21:11:11 Player: weirdfoe Result: Destroyed by Y-45 Defender with Beam Rifle Performance ------------- Evolutions (2) 1000 Regions Visited (3) 600 Robots Destroyed (0) 0 Value Destroyed (0) 0 Prototype IDs (0) 0 Alien Tech Used (0) 0 Bonus (470) 470 TOTAL SCORE: 2070 Bonus ------- Pacifist 470 Cogmind --------- Core Integrity 0/550 Matter 208/300 Energy 100/100 System Corruption 0% Temperature Cool (9) Movement Treading (170) Location -8/Materials Parts ------- > --- POWER (1) -------- (None) > --- PROPULSION (2) --- Armored Treads Armored Treads > --- UTILITY (6) ------ (None) > --- WEAPON (2) ------- (None) > --- INVENTORY (5) ---- Improved Aluminum Leg Small Storage Unit Signal Interpreter Heavy Particle Cannon Peak State ------------ > --- POWER ------------ (None) > --- PROPULSION ------- Armored Treads Armored Treads > --- UTILITY ---------- (None) > --- WEAPON ----------- (None) > --- INVENTORY -------- Improved Aluminum Leg Small Storage Unit Signal Interpreter Heavy Particle Cannon [Rating: 6] Favorites ----------- Power Light Ion Engine Engine Light Ion Engine Propulsion Compact Wheel Treads Armored Treads Leg Aluminum Leg Wheel Compact Wheel Utility Small Storage Unit Storage Small Storage Unit Weapon Mining Claw Energy Cannon Heavy Particle Cannon Slashing Weapon Mining Claw Build | -11 -10 -9 -8 ------- Run | Scr Mat Mat Mat Slots Evolved 4 | . . 2 2 Power . | . . . . Propulsion . | . . . . Utility 4 | . . 2 2 Weapon . | . . . . Parts Attached 18 | 4 1 5 8 Power 2 | 1 . 1 . Engine 2 | 1 . 1 . Core . | . . . . Reactor . | . . . . Propulsion 10 | 2 1 2 5 Treads 5 | . . . 5 Leg 2 | . . 2 . Wheel 3 | 2 1 . . Hover . | . . . . Flight . | . . . . Utility 2 | 1 . 1 . Device . | . . . . Storage 2 | 1 . 1 . Processor . | . . . . Hackware . | . . . . Protection . | . . . . Artifact . | . . . . Weapon 4 | . . 1 3 Energy Gun . | . . . . Energy Cannon 3 | . . . 3 Ballistic Gun . | . . . . Ballistic Cannon . | . . . . Launcher . | . . . . Special Weapon . | . . . . Impact Weapon . | . . . . Slashing Weapon 1 | . . 1 . Piercing Weapon . | . . . . Special Melee Weapon . | . . . . Unidentified Prototypes . | . . . . Parts Lost 4 | . 2 1 1 Power 1 | . . 1 . Propulsion 3 | . 2 . 1 Utility . | . . . . Weapon . | . . . . Highest Loss Streak 2 | . 2 1 1 Average Slot Usage (%) 27 | . 54 44 6 Engine 5 | . 14 6 . Treads 2 | . . . 4 Leg 5 | . . 20 . Wheel 5 | . 25 . . Storage 5 | . 14 9 . Slashing Weapon 2 | . . 7 . Naked Turns 123 | . . 16 107 Heaviest Build 10 | 8 8 10 6 Greatest Support 40 | 32 32 20 40 Greatest Overweight (x) 2 | . 2 . 1 Average Overweight (x) . | . . . . Largest Inventory Capacity 8 | 8 8 8 5 Average Capacity 6 | 7 8 7 5 Most Carried 5 | 5 5 5 5 Average Carried 3 | 2 4 3 4 Final Capacity 8 | 8 8 5 5 Final Carried 5 | 4 4 5 4 Class Distribution -------------------- 100% | Mutant Dominant Class ---------------- Mutant | -10/Materials Mutant | -9/Materials Mutant | -8/Materials Resources | -11 -10 -9 -8 ----------- Run | Scr Mat Mat Mat Matter Collected 249 | 240 . . 9 Remotely . | . . . . Salvage Created . | . . . . Parts . | . . . . Haulers Intercepted . | . . . . Recyclers Shooed 1 | . . . 1 Parts Field Recycled . | . . . . Retrieved Matter . | . . . . Parts Self-Destructed . | . . . . Prevented . | . . . . Kills | -11 -10 -9 -8 ------- Run | Scr Mat Mat Mat Combat Hostiles Destroyed . | . . . . Classes Destroyed . | . . . . Best Kill Streak . | . . . . Combat Bots Only . | . . . . Max Kills in Single Turn . | . . . . Gunslinging . | . . . . Exploded . | . . . . Melee . | . . . . Uniques/NPCs Destroyed . | . . . . Combat | -11 -10 -9 -8 -------- Run | Scr Mat Mat Mat Damage Taken 1522 | . 151 306 1065 Core 712 | . 42 114 556 Absorbed by Shields . | . . . . Core Remaining (%) 84 | 100 83 71 . Volleys Fired 4 | . . . 4 Largest 1 | . . . 1 Hottest 75 | . . . 75 Shots Fired 4 | . . . 4 Gun . | . . . . Cannon 4 | . . . 4 Launcher . | . . . . Special . | . . . . Kinetic . | . . . . Thermal 4 | . . . 4 Explosive . | . . . . Electromagnetic . | . . . . Robot Hit Streak . | . . . . Robot Miss Streak . | . . . . Penetration Max . | . . . . Secondary Targets . | . . . . Shots Hit Robots . | . . . . Core Hits 2 | . . . 2 Critical Kills . | . . . . Critical Parts Destroyed . | . . . . Critical Strikes . | . . . . Melee Attacks . | . . . . Impact . | . . . . Slashing . | . . . . Piercing . | . . . . Sneak Attacks . | . . . . Combat Hostiles . | . . . . Follow-up Attacks . | . . . . Damage Inflicted 8 | . . . 8 Guns . | . . . . Cannons . | . . . . Explosions . | . . . . Melee . | . . . . Ramming 8 | . . . 8 Kinetic . | . . . . Thermal . | . . . . Explosive . | . . . . Electromagnetic . | . . . . Impact . | . . . . Slashing . | . . . . Piercing . | . . . . Highest Corruption . | . . . . Average Corruption . | . . . . Corruption Purged . | . . . . Overload Shots . | . . . . Overflow Damage . | . . . . Projectiles . | . . . . Explosions . | . . . . Melee . | . . . . Knockbacks . | . . . . Impact . | . . . . Kinetic . | . . . . Secondary . | . . . . Self-Inflicted Damage 1 | . . . 1 Shots . | . . . . Rammed 6 | . . . 6 Targets Rammed 6 | . . . 6 Kicked . | . . . . Crushed . | . . . . Highest Temperature 55 | . . . 55 Average Temperature 18 | . . . 18 Received Heat Transfer 516 | . . 30 486 Siege Activations . | . . . . Robots Corrupted . | . . . . Combat Hostiles . | . . . . Parts Fried . | . . . . Impact Corruptions . | . . . . Robots Melted . | . . . . Combat Hostiles . | . . . . Parts Melted . | . . . . Heat Transferred . | . . . . Parts Sabotaged . | . . . . Parts Stolen . | . . . . Parts Stripped . | . . . . Power Chain Reactions . | . . . . Missiles Intercepted . | . . . . Alert | -11 -10 -9 -8 ------- Run | Scr Mat Mat Mat Peak Influence 158 | . 15 30 158 Initial 14 | . . . 14 Average 43 | . 3 11 92 Maximum Alert Level . | . . . . Low Security (%) 100 | 100 100 100 100 Level 1 . | . . . . Level 2 . | . . . . Level 3 . | . . . . Level 4 . | . . . . Level 5 . | . . . . High Security . | . . . . Max Security . | . . . . Squads Dispatched 6 | . 1 . 5 Investigation 1 | . . . 1 Extermination . | . . . . Reinforcement 5 | . 1 . 4 Assault . | . . . . Garrison . | . . . . Intercept . | . . . . Construction Impeded . | . . . . Haulers Reinforced . | . . . . Cargo Convoy Interrupts . | . . . . Stealth | -11 -10 -9 -8 --------- Run | Scr Mat Mat Mat Distress Signals 1 | . . . 1 Communications Jammed . | . . . . Distress Signals . | . . . . Times Spotted 30 | . 7 8 15 Peak Tracking Total 10 | . 6 5 10 Tactical Retreats 3 | . . 1 2 Traps | -11 -10 -9 -8 ------- Run | Scr Mat Mat Mat Traps Triggered 2 | . . . 2 Indirectly . | . . . . Trap Hack Attempts . | . . . . Triggered . | . . . . Disarmed . | . . . . Reprogrammed . | . . . . Reused . | . . . . Traps Extracted . | . . . . Installed . | . . . . Triggered . | . . . . Machines | -11 -10 -9 -8 ---------- Run | Scr Mat Mat Mat Machines Disabled . | . . . . Max in Single Turn . | . . . . Machines Sabotaged . | . . . . Garrisons Compromised . | . . . . Overloaded Fab Kills . | . . . . Fab Network Shutdowns . | . . . . Hacking | -11 -10 -9 -8 --------- Run | Scr Mat Mat Mat Machines Accessed 1 | . . . 1 Terminals 1 | . . . 1 Fabricators . | . . . . Repair Stations . | . . . . Recycling Units . | . . . . Scanalyzers . | . . . . Garrison Access . | . . . . Total Hacks 2 | . . . 2 Successful . | . . . . Failed 2 | . . . 2 Catastrophic . | . . . . Database Lockouts . | . . . . Manual 2 | . . . 2 Terminals 2 | . . . 2 Fabricators . | . . . . Repair Stations . | . . . . Recycling Units . | . . . . Scanalyzers . | . . . . Garrison Access . | . . . . Terminal Hacks . | . . . . Fabricator Hacks . | . . . . Repair Station Hacks . | . . . . Recycling Unit Hacks . | . . . . Scanalyzer . | . . . . Garrison Access Hacks . | . . . . Unauthorized Hacks . | . . . . Terminals . | . . . . Fabricators . | . . . . Repair Stations . | . . . . Recycling Units . | . . . . Scanalyzers . | . . . . Garrison Access . | . . . . Data Cores Recovered . | . . . . Used . | . . . . Hacking Detections . | . . . . Full Trace Events . | . . . . Feedback Events . | . . . . Feedback Blocked . | . . . . Robot Schematics Acquired . | . . . . Robots Built . | . . . . Matter . | . . . . Time . | . . . . Total Robot Build Rating . | . . . . Part Schematics Acquired . | . . . . Parts Built . | . . . . Matter . | . . . . Time . | . . . . Total Part Build Rating . | . . . . Parts Repaired . | . . . . Time . | . . . . Parts Recycled . | . . . . Recycled Matter . | . . . . Retrieved Matter . | . . . . Retrieved Components . | . . . . Parts Scanalyzed . | . . . . Part Schematics Acquired . | . . . . Parts Damaged . | . . . . Bothacking | -11 -10 -9 -8 ------------ Run | Scr Mat Mat Mat Used RIF Installer . | . . . . Robots Hacked . | . . . . Non-combat . | . . . . Combat . | . . . . Robot Hacks Applied . | . . . . Relay Couplers Released . | . . . . Robots Rewired . | . . . . Allies Hacked . | . . . . Hacks Repelled . | . . . . Allies | -11 -10 -9 -8 -------- Run | Scr Mat Mat Mat Total Allies . | . . . . Largest Group . | . . . . Highest-Rated Group . | . . . . Highest-Rated Ally . | . . . . Total Orders . | . . . . Ally Attacks . | . . . . Total Damage . | . . . . Kills . | . . . . Allies Corrupted . | . . . . Allies Melted . | . . . . Intel | -11 -10 -9 -8 ------- Run | Scr Mat Mat Mat Robot Analysis Total . | . . . . Derelict Logs Recovered . | . . . . Drone Launches . | . . . . Drone Recoveries . | . . . . Exploration | -11 -10 -9 -8 ------------- Run | Scr Mat Mat Mat Turns Passed 539 | 61 109 134 235 Spaces Moved 520 | 51 83 117 269 Core 260 | 9 1 28 222 Treads 47 | . . . 47 Legs 89 | . . 89 . Wheels 124 | 42 82 . . Hover . | . . . . Flight . | . . . . Fastest Speed 50 | 50 100 50 50 Average Speed 87 | 91 100 103 75 Slowest Speed 170 | 100 150 120 170 Overloaded Moves . | . . . . Propulsion Burnouts . | . . . . Robots Hopped . | . . . . Cave-ins Triggered . | . . . . Exploration Rate (%) 18 | 4 24 16 29 Regions Visited 3 Branch Regions . Pre-discovered Areas . | . . . . Known Exits Taken . | . . . . Unknown Exits Taken 3 | 1 1 1 . Scrap Searched . | . . . . Spaces Dug 4 | . . . 4 Terrain Destroyed 4 | . . . 4 Melee . | . . . . Projectile 4 | . . . 4 AOE . | . . . . Terrain Rammed . | . . . . Walls Destroyed . | . . . . Machines Disabled . | . . . . Actions | -11 -10 -9 -8 --------- Run | Scr Mat Mat Mat Total 602 | 65 109 133 295 Wait 26 | 1 25 . . Move 517 | 50 82 116 269 Hop . | . . . . Pick Up 15 | 9 . 4 2 Fast Attach 5 | . . 1 4 Attach 13 | 4 1 4 4 Detach 7 | . 1 3 3 Swap . | . . . . Drop 9 | 1 . 5 3 Fire 4 | . . . 4 Melee . | . . . . Ram 2 | . . . 2 Kick . | . . . . Crush 4 | . . . 4 Escape Stasis . | . . . . Rewire . | . . . . Trap . | . . . . Miscellaneous . | . . . . Route ------- -11/Scrapyard -10/Materials -9/Materials -8/Materials (discovered 1 exit: [*Fac]) History --------- Turn | Location | Event 17 | -11/Scrapyard | Discovered new exit (range 16) 62 | -11/Scrapyard | Entered Materials 156 | -10/Materials | Discovered new exit (range 16) 171 | -10/Materials | Entered another Materials area 171 | -9/Materials | Evolved 2 slots: Utility x2 304 | -9/Materials | Discovered new exit (range 3) 305 | -9/Materials | Entered another Materials area 305 | -8/Materials | Evolved 2 slots: Utility x2 315 | -8/Materials | Build established: Mutant 411 | -8/Materials | Discovered new exit (range 3) 502 | -8/Materials | Core integrity fell below 50% 523 | -8/Materials | Core integrity fell below 20% 540 | -8/Materials | Destroyed by Y-45 Defender with Beam Rifle Last Messages --------------- 00449_ Acquired Arm. Treads. 00469_ G-47 Trooper suffers critical hit (Burn). 00469_ G-47 Trooper destroyed. 00477_ Hadron Collector disabled. 00483_ Slammed into R-06 Scavenger. 00483_ U-05 Engineer lays Concrete. 00484_ T-07 Excavator is excavating. 00484_ U-05 Engineer lays Concrete. 00484_ Slammed into R-06 Scavenger. 00486_ U-05 Engineer lays Concrete. 00504_ Arm. Treads destroyed. 00506_ Acquired Adv. Treads. 00525_ ALERT: Hostiles spotted, dispatching reinforcements to Terminal M007. 00525_ Triggered Blade Trap. 00525_ Massive razor-sharp blades shoot up from within the floor. 00525_ Adv. Treads severed. 00528_ Acquired Arm. Treads. 00537_ Critical hit (Burn: +37). 00538_ Slammed into Y-45 Defender. Map ----- +----------------------------------------------------+ | ?????????????????????????""" !??# # #?????? | | ????????????????????????#""" # #!!!!]]#?????? | | ????????????????????????# %+" #!!!!]]#?????? | | ????????????????????????#""" # ########?????? | | ?????????????????????????""" # ##########???? | | ?????????????????????????""" ? ?# # #???? | | ????????????????????????# ?? ??# # " "" #???? | | ????????????????????????#???###### # """"[= #???? | | ????????????????????????????# # # """"%* #???? | | ????????????????????????????# / != #???? | | ????????????????????????????# # # """" #???? | | ?????????????????????????????????# # """" #???? | | ?????????????????????????????????# # """" #???? | | ?????????????????????????????????# # #???? | | ????????????????????????????###??# ##########???? | | ???????????????????????????? ?# #????????????? | | ???????????????????????????? """?# #????????????? | | ??????????????????????????"" """ # #????????????? | | ?????????????????????????""" """ # #????????????? | | ??????????????????????"" + #????????????? | | ????????????????????! = ! # #????????????? | | ???????????????????????## ######## ##???????????? | | ?????????????#################### ##+###??????? | | ?????????? g g #??????? | | ?????????? gg #??????? | | ?????????????????###+####@####### ##"###??????? | | ?????????????????????#! Y = #???##+###? ???????? | | ?????????????????????# #???? ???? ""??????? | | ?????????????????????# = #???? ?????""" ????? | | ?????????????????????# == #??? ?????"" ????? | | ?????????????????????#= == #??? ????????????? | | ?????????????????????# Y #?? #???????????? | | ?????????????????????# ######?? #???????????? | | ?????????????????????##??????? #???????????? | | ?????????????????????????????? #???????????? | | ????????????????????????????? #???????????? | | ?????????????????????????????########????????????? | | ?????????????????????????????????????????????????? | | | | | | | | | | | | | | | | | | | | | | | | | +----------------------------------------------------+ Best States ------------- Heat Dissipation 31 Energy Generation 10 Energy Capacity 125 Matter Stores 300 Matter Capacity 300 Sight Range 16 Terrain Scan Density 10 Evasion (%) 55 Recoil Reduction 2 Item Schematics ----------------- None Robot Schematics ------------------ None Fabricated ------------ Nothing Alien Tech Used ----------------- None Achievements -------------- None Challenges ------------ None Game ------ Seed MagneticStructuralSlayer Manual? 0 Play Time 00:13:44 Cumulative 22.9 hours Start 2021.05.20 @ 20:56:38 End 2021.05.20 @ 21:11:11 Sessions 1 Manual Loads 0 Difficulty Rogue Special Mode None Game No. 69 Rogue 69 Adventurer 0 Explorer 0 Win Type - Total 0 Types 0/0/0/0/0/0/0/0/0 Lore% 20 Gallery% 32 Achievement% 21 Wizard Run 0 Options --------- ASCII 0 Keyboard 0 Movement Mouse Keybinds 0 Fullscreen 2 Font 18/TerminusBold Map View 76x50 Tactical HUD 1 Map Filters NONE Filters NONE Steam 1 RUN: ca7e6e1c-bc9c-42c1-862c-1ab0ca5ae9d4